[Event "EYTCC Open U18 2022"]
[Site "Thessaloniki"]
[Date "2022.07.17"]
[Round "6.1"]
[White "Baum, Jonasz"]
[Black "Fromm, Marius"]
[Result "1-0"]
[ECO "E06"]
[WhiteElo "2410"]
[BlackElo "2391"]
[Annotator "ChessBase"]
[PlyCount "43"]
[EventDate "2022.07.12"]
[EventType "team-tourn"]
[EventCountry "GRE"]
[SourceTitle "playchess.com"]
[Source "ChessBase"]
[SourceQuality "1"]
[WhiteTeam "Poland"]
[BlackTeam "Germany"]
[WhiteTeamCountry "POL"]
[BlackTeamCountry "GER"]
[TimeControl "40/5400+30:1800+30"]

1. d4 {[%emt 0:00:02]} Nf6 {[%emt 0:00:07]} 2. c4 {[%emt 0:00:08]} e6 {[%emt 0:00:07]} 3. Nf3 {[%emt 0:00:05]} d5 {[%emt 0:00:08]} 4. g3 {[%emt 0:00:25]} Be7 {[%emt 0:00:10]} 5. Bg2 {[%emt 0:00:05]} O-O {[%emt 0:00:08]} 6. Nc3 {[%emt 0:00:44]} dxc4 {[%emt 0:00:35]} 7. Ne5 {[%emt 0:00:07]} c5 {[%emt 0:14:09]} 8. dxc5 {[%emt 0:00:07]} Qxd1+ {[%emt 0:01:15]} 9. Nxd1 {[%emt 0:00:02]} Bxc5 {[%emt 0:04:40]} 10. O-O {[%emt 0:00:18]} Nc6 {[%emt 0:04:18]} 11. Bxc6 {[%emt 0:00:36]} bxc6 {[%emt 0:00:06]} 12. Be3 {[%emt 0:00:02]} Bxe3 {[%emt 0:12:45]} 13. Nxe3 {[%emt 0:00:06]} c3 {[%emt 0:00:16]} 14. b3 {[%emt 0:04:04]} Nd5 {[%emt 0:06:08]} 15. Rfc1 {[%emt 0:09:35]} Nxe3 {[%emt 0:07:47]} 16. fxe3 {[%emt 0:00:06]} Ba6 {[%emt 0:01:16]} 17. Rxc3 {[%emt 0:12:53]} Bxe2 {[%emt 0:00:04]} 18. Kf2 {[%emt 0:02:51]} Ba6 {[%emt 0:00:06]} 19. Rxc6 {[%emt 0:12:47]} Bb7 {[%emt 0:00:06]} 20. Rc7 {[%emt 0:00:12]} Be4 {[%emt 0:03:04]} 21. Rac1 {[%emt 0:11:22]} g5 {[%emt 0:08:39]} 22. Nd7 {[%emt 0:00:50]} 1-0

[Event "EYTCC Open U18 2022"]
[Site "Thessaloniki"]
[Date "2022.07.17"]
[Round "6.2"]
[White "Deuer, Marius"]
[Black "Czopor, Maciej"]
[Result "0-1"]
[ECO "D35"]
[WhiteElo "2338"]
[BlackElo "2415"]
[Annotator "ChessBase"]
[PlyCount "96"]
[EventDate "2022.07.12"]
[EventType "team-tourn"]
[EventCountry "GRE"]
[SourceTitle "playchess.com"]
[Source "ChessBase"]
[SourceQuality "1"]
[WhiteTeam "Germany"]
[BlackTeam "Poland"]
[WhiteTeamCountry "GER"]
[BlackTeamCountry "POL"]
[TimeControl "40/5400+30:1800+30"]

1. d4 {[%emt 0:00:04]} Nf6 {[%emt 0:00:08]} 2. c4 {[%emt 0:00:06]} e6 {[%emt 0:00:05]} 3. Nc3 {[%emt 0:00:05]} d5 {[%emt 0:00:02]} 4. cxd5 {[%emt 0:00:10]} exd5 {[%emt 0:00:04]} 5. Bg5 {[%emt 0:00:19]} c6 {[%emt 0:00:19]} 6. e3 {[%emt 0:00:11]} Bd6 {[%emt 0:00:17]} 7. Bd3 {[%emt 0:01:20]} O-O {[%emt 0:00:11]} 8. Qc2 {[%emt 0:02:12]} h6 {[%emt 0:00:07]} 9. Bh4 {[%emt 0:00:40]} Re8 {[%emt 0:00:05]} 10. Nge2 {[%emt 0:03:08]} a5 {[%emt 0:00:14]} 11. h3 {[%emt 0:02:08]} Na6 {[%emt 0:00:07]} 12. a3 {[%emt 0:09:05]} Nc7 {[%emt 0:00:04]} 13. O-O {[%emt 0:00:50]} Ne6 {[%emt 0:00:06]} 14. Rae1 {[%emt 0:05:26]} Bd7 {[%emt 0:07:29]} 15. f3 {[%emt 0:04:27]} Ng5 {[%emt 0:07:39]} 16. Bxg5 {[%emt 0:20:25]} hxg5 {[%emt 0:00:07]} 17. e4 {[%emt 0:00:07]} c5 {[%emt 0:19:02]} 18. Nb5 {[%emt 0:03:44]} Bf8 {[%emt 0:03:29]} 19. dxc5 {[%emt 0:10:37]} Rc8 {[%emt 0:04:05]} 20. b4 {[%emt 0:02:43]} b6 {[%emt 0:02:30]} 21. Qb3 {[%emt 0:10:49]} bxc5 {[%emt 0:01:42]} 22. bxc5 {[%emt 0:01:31]} a4 {[%emt 0:09:15]} 23. Qxa4 {[%emt 0:05:05]} dxe4 {[%emt 0:00:08]} 24. fxe4 {[%emt 0:00:19]} Bxc5+ {[%emt 0:00:54]} 25. Kh1 {[%emt 0:00:59]} Bxh3 {[%emt 0:03:31]} 26. Ned4 {[%emt 0:02:51]} Bd7 {[%emt 0:04:58]} 27. e5 {[%emt 0:02:24]} Nh5 {[%emt 0:03:00]} 28. Qb3 {[%emt 0:04:44]} Ng3+ {[%emt 0:01:24]} 29. Kh2 {[%emt 0:00:23]} Nxf1+ {[%emt 0:00:43]} 30. Rxf1 {[%emt 0:00:02]} Bxb5 31. Nxb5 Re6 {[%emt 0:03:32]} 32. Bf5 {[%emt 0:07:58]} Rh6+ {[%emt 0:02:29]} 33. Kg3 {[%emt 0:00:01]} Qe7 {[%emt 0:04:39]} 34. Qd5 {[%emt 0:02:03]} Rd8 {[%emt 0:01:08]} 35. Qe4 {[%emt 0:00:04]} Bxa3 {[%emt 0:03:57]} 36. Nd4 {[%emt 0:00:02]} Qb4 {[%emt 0:03:31]} 37. Rd1 {[%emt 0:00:01]} Qc3+ {[%emt 0:01:52]} 38. Rd3 {[%emt 0:00:27]} Qc1 {[%emt 0:01:49]} 39. Rf3 {[%emt 0:01:09]} Bb4 {[%emt 0:02:15]} 40. Nc2 {[%emt 0:00:00]} Bd2 {[%emt 0:00:00]} 41. Rf2 {[%emt 0:04:35]} Bf4+ {[%emt 0:02:49]} 42. Kf3 {[%emt 0:01:28]} Qd1+ {[%emt 0:03:20]} 43. Re2 {[%emt 0:04:53]} Rb6 {[%emt 0:01:38]} 44. Qc4 {[%emt 0:04:02]} Qf1+ {[%emt 0:01:17]} 45. Ke4 {[%emt 0:00:26]} Rc6 {[%emt 0:00:27]} 46. Qb5 {[%emt 0:02:25]} Rxc2 {[%emt 0:00:17]} 47. Rd2 {[%emt 0:00:07]} Qe1+ {[%emt 0:00:37]} 48. Kf3 {[%emt 0:00:02]} Qg3+ {[%emt 0:00:11]} 0-1

[Event "EYTCC Open U18 2022"]
[Site "Thessaloniki"]
[Date "2022.07.17"]
[Round "6.3"]
[White "Klimkowski, Jan"]
[Black "Colbow, Collin"]
[Result "1-0"]
[ECO "E10"]
[WhiteElo "2398"]
[BlackElo "2325"]
[Annotator "ChessBase"]
[PlyCount "67"]
[EventDate "2022.07.12"]
[EventType "team-tourn"]
[EventCountry "GRE"]
[SourceTitle "playchess.com"]
[Source "ChessBase"]
[SourceQuality "1"]
[WhiteTeam "Poland"]
[BlackTeam "Germany"]
[WhiteTeamCountry "POL"]
[BlackTeamCountry "GER"]
[TimeControl "40/5400+30:1800+30"]

1. d4 {[%emt 0:00:02]} Nf6 {[%emt 0:00:10]} 2. c4 {[%emt 0:00:06]} e6 {[%emt 0:00:04]} 3. Nf3 {[%emt 0:00:03]} d5 {[%emt 0:00:05]} 4. g3 {[%emt 0:00:17]} Bb4+ {[%emt 0:00:15]} 5. Bd2 {[%emt 0:00:24]} Be7 {[%emt 0:00:05]} 6. Bg2 {[%emt 0:00:46]} O-O {[%emt 0:00:06]} 7. O-O {[%emt 0:00:48]} b6 {[%emt 0:05:07]} 8. Nc3 {[%emt 0:01:25]} Bb7 {[%emt 0:03:06]} 9. cxd5 {[%emt 0:03:02]} Nxd5 {[%emt 0:08:51]} 10. Qc2 {[%emt 0:09:54]} Nd7 {[%emt 0:04:39]} 11. Nxd5 {[%emt 0:07:42]} Bxd5 {[%emt 0:03:08]} 12. e4 {[%emt 0:03:02]} Bb7 {[%emt 0:00:16]} 13. Rad1 {[%emt 0:00:26]} c5 {[%emt 0:07:29]} 14. d5 {[%emt 0:09:06]} e5 {[%emt 0:19:56]} 15. Bc3 {[%emt 0:12:44]} Bd6 {[%emt 0:00:29]} 16. b3 {[%emt 0:03:02]} b5 {[%emt 0:02:35]} 17. Bh3 {[%emt 0:03:14]} Re8 {[%emt 0:02:27]} 18. Nh4 {[%emt 0:00:52]} g6 {[%emt 0:13:20]} 19. f4 {[%emt 0:04:15]} exf4 {[%emt 0:02:41]} 20. Bxd7 {[%emt 0:00:09]} Qxd7 {[%emt 0:00:43]} 21. gxf4 {[%emt 0:00:34]} Qg4+ {[%emt 0:03:36]} 22. Ng2 {[%emt 0:00:21]} h5 {[%emt 0:06:58]} 23. Ba1 {[%emt 0:02:12]} Kh7 {[%emt 0:01:40]} 24. Qc3 {[%emt 0:02:19]} Rg8 {[%emt 0:00:07]} 25. Qf6 {[%emt 0:03:18]} Qd7 {[%emt 0:00:29]} 26. e5 {[%emt 0:00:54]} Bf8 {[%emt 0:00:49]} 27. e6 {[%emt 0:00:50]} Qe7 {[%emt 0:00:29]} 28. Qxe7 {[%emt 0:02:00]} Bxe7 {[%emt 0:00:05]} 29. d6 {[%emt 0:00:02]} Bxg2 {[%emt 0:02:58]} 30. Kxg2 {[%emt 0:00:16]} Bh4 {[%emt 0:00:22]} 31. Kh3 {[%emt 0:00:16]} g5 {[%emt 0:00:22]} 32. fxg5 {[%emt 0:00:05]} Bxg5 {[%emt 0:00:31]} 33. Rxf7+ {[%emt 0:00:06]} Kg6 {[%emt 0:01:38]} 34. Rdf1 {[%emt 0:00:36]} 1-0

[Event "EYTCC Open U18 2022"]
[Site "Thessaloniki"]
[Date "2022.07.17"]
[Round "6.4"]
[White "Cherniaiev, Tykhon"]
[Black "Seemann, Jakub"]
[Result "1/2-1/2"]
[ECO "D38"]
[WhiteElo "2186"]
[BlackElo "2382"]
[Annotator "ChessBase"]
[PlyCount "62"]
[EventDate "2022.07.12"]
[EventType "team-tourn"]
[EventCountry "GRE"]
[SourceTitle "playchess.com"]
[Source "ChessBase"]
[SourceQuality "1"]
[WhiteTeam "Germany"]
[BlackTeam "Poland"]
[WhiteTeamCountry "GER"]
[BlackTeamCountry "POL"]
[TimeControl "40/5400+30:1800+30"]

1. d4 {[%emt 0:00:11]} Nf6 {[%emt 0:00:07]} 2. Nf3 {[%emt 0:00:13]} d5 {[%emt 0:00:08]} 3. c4 {[%emt 0:00:15]} e6 {[%emt 0:00:07]} 4. Nc3 {[%emt 0:00:16]} Bb4 {[%emt 0:00:19]} 5. Bg5 {[%emt 0:01:06]} h6 {[%emt 0:00:07]} 6. Bxf6 {[%emt 0:00:39]} Qxf6 {[%emt 0:00:06]} 7. e3 {[%emt 0:01:01]} O-O {[%emt 0:01:10]} 8. a3 {[%emt 0:03:27]} Bxc3+ {[%emt 0:00:28]} 9. bxc3 {[%emt 0:00:08]} c5 {[%emt 0:08:26]} 10. Bd3 {[%emt 0:04:23]} dxc4 {[%emt 0:00:29]} 11. Bxc4 {[%emt 0:00:07]} Nc6 {[%emt 0:00:49]} 12. O-O {[%emt 0:00:42]} b6 {[%emt 0:01:49]} 13. dxc5 {[%emt 0:18:33]} Qxc3 {[%emt 0:13:06]} 14. Qd3 {[%emt 0:02:23]} Qa5 {[%emt 0:04:56]} 15. cxb6 {[%emt 0:01:20]} axb6 {[%emt 0:00:14]} 16. Rab1 {[%emt 0:11:20]} Bb7 {[%emt 0:06:22]} 17. Qb3 {[%emt 0:12:41]} Ne5 {[%emt 0:02:58]} 18. Nxe5 {[%emt 0:02:42]} Qxe5 {[%emt 0:00:22]} 19. Rfd1 {[%emt 0:02:41]} Rfc8 {[%emt 0:05:44]} 20. Bf1 {[%emt 0:01:31]} Bd5 {[%emt 0:04:26]} 21. Qxb6 {[%emt 0:03:57]} Rxa3 {[%emt 0:00:30]} 22. Qd4 {[%emt 0:02:28]} Qxd4 {[%emt 0:07:23]} 23. Rxd4 {[%emt 0:00:14]} f5 {[%emt 0:01:35]} 24. g3 {[%emt 0:02:38]} Ra2 {[%emt 0:00:53]} 25. Bg2 {[%emt 0:00:40]} Bxg2 {[%emt 0:00:14]} 26. Kxg2 {[%emt 0:00:03]} Rcc2 {[%emt 0:00:22]} 27. Rf1 {[%emt 0:00:10]} Kf7 {[%emt 0:00:11]} 28. h4 {[%emt 0:00:48]} Kf6 {[%emt 0:00:31]} 29. Rb4 {[%emt 0:00:33]} g5 {[%emt 0:00:12]} 30. hxg5+ {[%emt 0:00:10]} hxg5 {[%emt 0:00:04]} 31. Rb5 {[%emt 0:00:29]} g4 {[%emt 0:00:16]} 1/2-1/2

[Event "EYTCC Open U18 2022"]
[Site "Thessaloniki"]
[Date "2022.07.17"]
[Round "6.5"]
[White "Milikow, Yoav"]
[Black "Levin, Guy"]
[Result "1/2-1/2"]
[ECO "D26"]
[WhiteElo "2452"]
[BlackElo "2363"]
[Annotator "ChessBase"]
[PlyCount "59"]
[EventDate "2022.07.12"]
[EventType "team-tourn"]
[EventCountry "GRE"]
[SourceTitle "playchess.com"]
[Source "ChessBase"]
[SourceQuality "1"]
[WhiteTeam "Israel"]
[BlackTeam "Israel"]
[WhiteTeamCountry "ISR"]
[BlackTeamCountry "ISR"]
[TimeControl "40/5400+30:1800+30"]

1. d4 {[%emt 0:00:10]} d5 {[%emt 0:00:06]} 2. c4 {[%emt 0:00:19]} dxc4 {[%emt 0:00:06]} 3. Nf3 {[%emt 0:00:06]} Nf6 {[%emt 0:00:04]} 4. e3 {[%emt 0:00:07]} e6 {[%emt 0:00:03]} 5. Bxc4 {[%emt 0:00:06]} a6 {[%emt 0:00:03]} 6. O-O {[%emt 0:00:13]} b5 {[%emt 0:00:04]} 7. Bd3 {[%emt 0:00:10]} Bb7 {[%emt 0:00:06]} 8. a4 {[%emt 0:00:15]} b4 {[%emt 0:00:05]} 9. Qe2 {[%emt 0:00:27]} Nbd7 {[%emt 0:00:12]} 10. Nbd2 {[%emt 0:00:17]} c5 {[%emt 0:00:09]} 11. Nc4 {[%emt 0:00:15]} Be7 {[%emt 0:00:06]} 12. a5 {[%emt 0:00:19]} O-O {[%emt 0:00:23]} 13. Bd2 {[%emt 0:01:53]} Qc7 {[%emt 0:01:00]} 14. Rfc1 {[%emt 0:01:23]} Rad8 {[%emt 0:01:31]} 15. Nfe5 {[%emt 0:10:54]} g6 {[%emt 0:20:49]} 16. Be1 {[%emt 0:09:46]} Qb8 {[%emt 0:04:01]} 17. Nxd7 {[%emt 0:10:51]} Nxd7 {[%emt 0:00:19]} 18. dxc5 {[%emt 0:03:48]} Nxc5 {[%emt 0:06:05]} 19. Bxb4 {[%emt 0:00:01]} Bf3 {[%emt 0:01:45]} 20. gxf3 {[%emt 0:00:11]} Qxb4 {[%emt 0:00:17]} 21. Bc2 {[%emt 0:02:13]} Rd5 {[%emt 0:07:07]} 22. Rd1 {[%emt 0:03:22]} Rfd8 {[%emt 0:04:18]} 23. b3 {[%emt 0:01:54]} Qc3 {[%emt 0:12:47]} 24. Rab1 {[%emt 0:01:23]} Rxd1+ {[%emt 0:08:43]} 25. Rxd1 {[%emt 0:02:22]} Nxb3 {[%emt 0:02:08]} 26. Rxd8+ {[%emt 0:00:47]} Bxd8 {[%emt 0:00:04]} 27. Qd1 {[%emt 0:00:47]} Qxc4 {[%emt 0:00:06]} 28. Qxd8+ {[%emt 0:00:22]} Kg7 {[%emt 0:00:06]} 29. Bxb3 {[%emt 0:00:14]} Qxb3 {[%emt 0:00:09]} 30. Qd4+ {[%emt 0:00:11]} 1/2-1/2

[Event "EYTCC Open U18 2022"]
[Site "Thessaloniki"]
[Date "2022.07.17"]
[Round "6.6"]
[White "Yaniv, Yuval"]
[Black "Rozen, Eytan"]
[Result "1/2-1/2"]
[ECO "B12"]
[WhiteElo "2305"]
[BlackElo "2465"]
[Annotator "ChessBase"]
[PlyCount "117"]
[EventDate "2022.07.12"]
[EventType "team-tourn"]
[EventCountry "GRE"]
[SourceTitle "playchess.com"]
[Source "ChessBase"]
[SourceQuality "1"]
[WhiteTeam "Israel"]
[BlackTeam "Israel"]
[WhiteTeamCountry "ISR"]
[BlackTeamCountry "ISR"]
[TimeControl "40/5400+30:1800+30"]

1. e4 {[%emt 0:00:07]} c6 {[%emt 0:00:29]} 2. d4 {[%emt 0:00:17]} d5 {[%emt 0:00:02]} 3. e5 {[%emt 0:00:16]} Bf5 {[%emt 0:00:16]} 4. h4 {[%emt 0:00:18]} h5 {[%emt 0:00:08]} 5. c4 {[%emt 0:00:36]} e6 {[%emt 0:00:29]} 6. Nc3 {[%emt 0:00:06]} Bb4 {[%emt 0:05:20]} 7. Nge2 {[%emt 0:02:19]} dxc4 {[%emt 0:06:40]} 8. Ng3 {[%emt 0:01:03]} Ne7 {[%emt 0:03:00]} 9. Bxc4 {[%emt 0:00:43]} c5 {[%emt 0:00:56]} 10. Nxf5 {[%emt 0:17:20]} Nxf5 {[%emt 0:00:42]} 11. d5 {[%emt 0:00:13]} exd5 {[%emt 0:00:36]} 12. Qxd5 {[%emt 0:00:45]} O-O {[%emt 0:08:49]} 13. Bg5 {[%emt 0:03:12]} Qxd5 {[%emt 0:05:20]} 14. Bxd5 {[%emt 0:00:04]} Nc6 {[%emt 0:00:08]} 15. O-O {[%emt 0:07:20]} Rfe8 {[%emt 0:08:43]} 16. Bxc6 {[%emt 0:10:49]} bxc6 {[%emt 0:01:36]} 17. Rfe1 {[%emt 0:00:10]} Re6 {[%emt 0:10:11]} 18. Rad1 {[%emt 0:09:24]} Rae8 {[%emt 0:06:41]} 19. Kf1 {[%emt 0:01:01]} Ba5 {[%emt 0:05:55]} 20. Rd7 {[%emt 0:15:30]} Bb6 {[%emt 0:00:20]} 21. Na4 {[%emt 0:02:22]} f6 {[%emt 0:10:22]} 22. Bd2 {[%emt 0:04:12]} fxe5 {[%emt 0:00:25]} 23. Bg5 {[%emt 0:00:37]} e4 {[%emt 0:00:56]} 24. Rb7 {[%emt 0:02:47]} Nd6 {[%emt 0:03:29]} 25. Rd7 {[%emt 0:00:02]} c4 {[%emt 0:00:33]} 26. Rd1 {[%emt 0:04:23]} Nf5 {[%emt 0:01:13]} 27. Nxb6 {[%emt 0:00:49]} axb6 {[%emt 0:00:14]} 28. Rb7 {[%emt 0:00:04]} b5 {[%emt 0:06:38]} 29. Rdd7 {[%emt 0:00:02]} Rg6 {[%emt 0:03:15]} 30. Ke2 {[%emt 0:05:48]} Ra8 {[%emt 0:04:03]} 31. Ra7 {[%emt 0:00:10]} Rb8 {[%emt 0:00:36]} 32. Bf4 {[%emt 0:01:38]} Re8 {[%emt 0:01:22]} 33. Bg5 {[%emt 0:01:33]} Rb8 {[%emt 0:00:13]} 34. Bf4 {[%emt 0:00:55]} Re8 {[%emt 0:00:02]} 35. Bg5 {[%emt 0:00:01]} Rge6 {[%emt 0:01:26]} 36. Rf7 {[%emt 0:02:24]} Re5 {[%emt 0:02:38]} 37. Rfc7 {[%emt 0:00:08]} Rd5 {[%emt 0:01:32]} 38. Bd2 {[%emt 0:05:16]} Rd3 {[%emt 0:02:24]} 39. Rf7 {[%emt 0:02:03]} Nd4+ {[%emt 0:01:18]} 40. Ke1 {[%emt 0:00:00]} Ne6 {[%emt 0:00:00]} 41. Bc3 {[%emt 0:07:51]} Red8 {[%emt 0:14:49]} 42. Bxg7 {[%emt 0:05:54]} b4 {[%emt 0:03:33]} 43. Bh6 {[%emt 0:08:24]} c3 {[%emt 0:10:41]} 44. bxc3 {[%emt 0:00:03]} bxc3 {[%emt 0:00:06]} 45. Rf6 {[%emt 0:04:59]} R3d6 {[%emt 0:03:28]} 46. Rg6+ {[%emt 0:01:43]} Kh8 {[%emt 0:00:03]} 47. Be3 {[%emt 0:03:46]} Rd1+ {[%emt 0:01:16]} 48. Ke2 {[%emt 0:00:01]} R8d2+ {[%emt 0:00:16]} 49. Bxd2 {[%emt 0:00:05]} Rxd2+ {[%emt 0:00:01]} 50. Ke3 {[%emt 0:01:28]} Rd3+ {[%emt 0:01:38]} 51. Kxe4 {[%emt 0:00:01]} Nc5+ {[%emt 0:00:15]} 52. Kf5 {[%emt 0:00:59]} Rd5+ {[%emt 0:00:26]} 53. Kf6 {[%emt 0:00:31]} Ne4+ {[%emt 0:00:22]} 54. Kf7 {[%emt 0:02:23]} Rf5+ {[%emt 0:00:37]} 55. Ke6 {[%emt 0:00:16]} Rxf2 {[%emt 0:00:54]} 56. Rh6+ {[%emt 0:00:12]} Kg8 {[%emt 0:00:02]} 57. Rg6+ {[%emt 0:00:04]} Kh8 {[%emt 0:00:01]} 58. Rh6+ {[%emt 0:02:01]} Kg8 {[%emt 0:00:02]} 59. Rg6+ 1/2-1/2

[Event "EYTCC Open U18 2022"]
[Site "Thessaloniki"]
[Date "2022.07.17"]
[Round "6.7"]
[White "Ben Ari, Yannay"]
[Black "Zemach, Nadav"]
[Result "1/2-1/2"]
[ECO "D31"]
[WhiteElo "2411"]
[BlackElo "2225"]
[Annotator "ChessBase"]
[PlyCount "152"]
[EventDate "2022.07.12"]
[EventType "team-tourn"]
[EventCountry "GRE"]
[SourceTitle "playchess.com"]
[Source "ChessBase"]
[SourceQuality "1"]
[WhiteTeam "Israel"]
[BlackTeam "Israel"]
[WhiteTeamCountry "ISR"]
[BlackTeamCountry "ISR"]
[TimeControl "40/5400+30:1800+30"]

1. d4 {[%emt 0:00:04]} d5 {[%emt 0:00:01]} 2. c4 {[%emt 0:00:01]} e6 {[%emt 0:00:05]} 3. Nc3 {[%emt 0:00:09]} a6 {[%emt 0:00:04]} 4. cxd5 {[%emt 0:00:16]} exd5 {[%emt 0:00:05]} 5. Qb3 {[%emt 0:00:09]} c5 {[%emt 0:03:37]} 6. Nxd5 {[%emt 0:00:54]} Nc6 {[%emt 0:16:07]} 7. Bg5 {[%emt 0:01:49]} f6 {[%emt 0:11:10]} 8. Be3 {[%emt 0:00:29]} cxd4 {[%emt 0:03:30]} 9. Bd2 {[%emt 0:00:27]} Be6 {[%emt 0:08:14]} 10. Nc7+ {[%emt 0:05:49]} Qxc7 {[%emt 0:00:06]} 11. Qxe6+ {[%emt 0:00:06]} Qe7 {[%emt 0:02:35]} 12. Qb3 {[%emt 0:09:01]} Qf7 {[%emt 0:01:10]} 13. Qd1 {[%emt 0:08:56]} f5 {[%emt 0:02:38]} 14. Nf3 {[%emt 0:10:55]} Nf6 {[%emt 0:00:45]} 15. g3 {[%emt 0:06:07]} Ne4 {[%emt 0:03:58]} 16. Bg2 {[%emt 0:01:05]} Be7 {[%emt 0:01:10]} 17. O-O {[%emt 0:00:15]} O-O {[%emt 0:00:15]} 18. Ne1 {[%emt 0:03:08]} Bf6 {[%emt 0:03:12]} 19. Nd3 {[%emt 0:03:20]} Rac8 {[%emt 0:04:43]} 20. Be1 {[%emt 0:00:38]} Rfd8 {[%emt 0:01:12]} 21. a3 {[%emt 0:02:11]} g6 {[%emt 0:03:38]} 22. Rc1 {[%emt 0:05:31]} Kg7 {[%emt 0:01:24]} 23. Rc2 {[%emt 0:09:10]} Ne7 {[%emt 0:02:28]} 24. Ba5 {[%emt 0:05:15]} Rxc2 {[%emt 0:00:22]} 25. Qxc2 {[%emt 0:00:02]} Rc8 {[%emt 0:00:13]} 26. Qb1 {[%emt 0:00:35]} b6 {[%emt 0:02:36]} 27. Bb4 {[%emt 0:05:12]} a5 {[%emt 0:01:21]} 28. Bxe7 {[%emt 0:02:08]} Qxe7 {[%emt 0:00:14]} 29. Rd1 {[%emt 0:07:33]} Qc7 {[%emt 0:03:49]} 30. Rc1 {[%emt 0:00:11]} Qd7 {[%emt 0:00:04]} 31. Rxc8 {[%emt 0:04:22]} Qxc8 {[%emt 0:00:02]} 32. Nf4 {[%emt 0:00:37]} Qc6 {[%emt 0:03:08]} 33. h4 {[%emt 0:01:41]} b5 {[%emt 0:03:26]} 34. Bf3 {[%emt 0:00:37]} b4 {[%emt 0:00:36]} 35. axb4 {[%emt 0:00:19]} axb4 {[%emt 0:00:05]} 36. Kg2 {[%emt 0:04:29]} Be5 {[%emt 0:02:15]} 37. Nd3 {[%emt 0:00:15]} Bd6 {[%emt 0:02:01]} 38. Qa2 {[%emt 0:00:05]} Qb6 {[%emt 0:02:43]} 39. Qd5 {[%emt 0:05:34]} Nf6 {[%emt 0:00:43]} 40. Qe6 {[%emt 0:00:00]} Qc7 {[%emt 0:00:00]} 41. h5 {[%emt 0:02:57]} Qd8 {[%emt 0:03:14]} 42. Qc4 {[%emt 0:09:02]} Qb6 {[%emt 0:00:59]} 43. b3 {[%emt 0:02:46]} Nd7 {[%emt 0:05:16]} 44. Qc1 {[%emt 0:13:08]} h6 {[%emt 0:09:40]} 45. hxg6 {[%emt 0:00:06]} Kxg6 {[%emt 0:00:07]} 46. Qc8 {[%emt 0:03:15]} Nf6 {[%emt 0:01:25]} 47. Qe6 {[%emt 0:00:03]} Qd8 {[%emt 0:00:18]} 48. Qc4 {[%emt 0:00:34]} Qb6 {[%emt 0:00:29]} 49. Qc8 {[%emt 0:01:04]} h5 50. Kh3 Qa7 {[%emt 0:08:47]} 51. Qe6 {[%emt 0:01:51]} Qd7 {[%emt 0:05:52]} 52. Bxh5+ {[%emt 0:01:27]} Kg7 {[%emt 0:00:13]} 53. Qxd7+ {[%emt 0:00:33]} Nxd7 {[%emt 0:00:05]} 54. Kg2 {[%emt 0:00:39]} Nc5 {[%emt 0:01:57]} 55. Nxb4 {[%emt 0:00:08]} Nxb3 {[%emt 0:00:09]} 56. Nc6 {[%emt 0:00:47]} Bc5 {[%emt 0:01:30]} 57. Bf3 {[%emt 0:00:40]} Kf6 {[%emt 0:02:02]} 58. Bd5 {[%emt 0:00:19]} Nd2 {[%emt 0:00:40]} 59. f4 {[%emt 0:00:22]} Nb1 {[%emt 0:00:38]} 60. Ne5 {[%emt 0:00:32]} Bd6 {[%emt 0:00:41]} 61. Nf3 {[%emt 0:00:42]} Nc3 {[%emt 0:01:12]} 62. Bc4 {[%emt 0:00:03]} Nd1 {[%emt 0:00:23]} 63. Bd3 {[%emt 0:00:09]} Ne3+ {[%emt 0:00:05]} 64. Kh3 {[%emt 0:00:23]} Bc5 {[%emt 0:00:11]} 65. Ba6 {[%emt 0:00:22]} Bb6 {[%emt 0:00:16]} 66. Bc8 {[%emt 0:01:01]} Bc5 {[%emt 0:00:45]} 67. Ne5 {[%emt 0:00:30]} Bd6 {[%emt 0:00:38]} 68. Nf3 {[%emt 0:00:39]} Bc5 {[%emt 0:00:13]} 69. Kh4 {[%emt 0:00:07]} Ng2+ {[%emt 0:00:22]} 70. Kh5 {[%emt 0:00:28]} Ne3 {[%emt 0:00:18]} 71. Ne5 {[%emt 0:00:07]} Bd6 {[%emt 0:01:00]} 72. Nd7+ {[%emt 0:01:43]} Kg7 {[%emt 0:00:06]} 73. Ne5 {[%emt 0:00:24]} Be7 {[%emt 0:01:17]} 74. Nf3 {[%emt 0:00:40]} Nf1 {[%emt 0:00:36]} 75. Bxf5 {[%emt 0:00:04]} Nxg3+ {[%emt 0:00:06]} 76. Kg4 {[%emt 0:00:04]} Nxe2 {[%emt 0:00:04]} 1/2-1/2